{"text_format":"1","workbook":"xlsx","n_sheets":7,"sheets":["Del 1-4, Projektplan","Del 5, Budget","Del 6, Bilaga Övning","Exempel verksamhetslogik","Om blanketten","MSB","Koppling"],"not_rendered":{"charts":0,"images":5,"macros":1,"external_links":0,"defined_names":10,"comments":1,"pivot_tables":0},"unopened":[],"bounds":{"document_bytes":16777216,"sheet_cells":100000,"rows_first":2000,"rows_last":500,"rows_between":2000,"halvings":0,"cell_chars":16384,"cell_head_chars":4096},"cells_cut":0,"cells_raw":0,"read":"whole","date_system":"1900"}

{"sheet":"Del 1-4, Projektplan","index":0,"n_rows":413,"n_cols":10,"rows_kept":413,"cut":false,"hidden":false,"merged":[[98,1,104,9],[6,1,16,9],[26,4,26,8],[33,4,33,8],[96,1,96,6],[139,1,150,9],[247,1,255,9],[205,1,221,9],[359,1,359,2],[282,1,287,9],[133,1,137,9],[48,6,48,8],[120,1,123,9],[46,2,46,5],[47,2,47,5],[48,2,48,5],[46,6,46,8],[158,5,158,8],[223,1,223,8],[77,1,77,4],[196,1,200,9],[80,1,81,9],[21,1,23,9],[39,1,40,9],[25,4,25,8],[397,1,397,2],[394,1,394,2],[267,1,270,9],[397,3,397,6],[393,1,393,2],[400,1,400,2],[398,3,398,6],[399,3,399,6],[400,3,400,6],[391,7,391,8],[392,7,392,8],[393,7,393,8],[395,1,395,2],[395,3,395,6],[395,7,395,8],[396,1,396,2],[397,7,397,8],[398,7,398,8],[392,3,392,6],[393,3,393,6],[389,1,389,2],[390,1,390,2],[333,1,335,9],[412,1,412,5],[404,1,404,3],[404,7,404,10],[398,1,398,2],[399,1,399,2],[311,1,319,9],[299,1,309,9],[28,4,28,8],[29,4,29,8],[30,4,30,8],[31,4,31,8],[32,4,32,8],[36,1,37,9],[59,1,73,9],[113,1,116,9],[43,1,44,9],[47,6,47,8],[53,2,53,5],[53,6,53,8],[54,2,54,5],[54,6,54,8],[55,2,55,5],[55,6,55,8],[52,2,52,5],[52,6,52,8],[86,1,93,9],[409,1,409,4],[119,1,119,9],[111,1,112,9],[400,7,400,8],[391,3,391,6],[394,3,394,6],[394,7,394,8],[360,5,360,9],[163,1,168,9],[336,1,341,9],[271,1,279,9],[288,1,296,9],[345,1,350,9],[363,1,367,9],[369,1,369,2],[392,1,392,2],[389,7,389,8],[390,7,390,8],[396,3,396,6],[396,7,396,8],[399,7,399,8],[391,1,391,2],[153,1,153,9],[325,1,330,9],[224,1,224,5],[258,1,264,9],[228,1,236,9],[389,3,389,6],[390,3,390,6],[382,1,387,9],[239,1,245,9],[322,1,324,9],[369,3,369,9],[173,1,175,9],[107,1,107,6],[127,1,130,9],[379,1,379,2],[370,3,370,9],[371,3,371,9],[379,3,379,9],[372,3,372,9],[373,3,373,9],[374,3,374,9],[375,3,375,9],[376,3,376,9],[377,3,377,9],[378,3,378,9],[370,1,370,2],[371,1,371,2],[372,1,372,2],[373,1,373,2],[374,1,374,2],[375,1,375,2],[376,1,376,2],[377,1,377,2],[378,1,378,2],[179,1,184,9],[188,1,192,9]]}
[]
[null,null,null,null,null,"Projektplan för myndigheter"]
[null,null,null,null,null,{"$f":"\"Ansökan om medel från anslag 2:4 Krisberedskap \"&Koppling!$A$5","v":"Ansökan om medel från anslag 2:4 Krisberedskap 2023"}]
[]
[null,null,null,null,null,{"$f":"\"Skicka in ansökan senast den 30 september \"&SUM(Koppling!$A$5-1)&\" till anslag2-4@msb.se\"","v":"Skicka in ansökan senast den 30 september 2022 till anslag2-4@msb.se"}]
[]
[null,"Fyll i blanketten så här:\n- Fyll i de ljusgrå cellerna. Skriv direkt i textfältet eller skriv först i Word och dubbelklicka på rutan för att klistra  in texten.\n- Om er beskrivning av en aktivitet blir längre än den mängd text som kan visas i rutan kan ni förstora testrutan genom att dra i skiljelinjen mellan radnumren till vänster \n- För att skapa fler rader, högerklicka på ett radnummer i vänstermarginalern och infoga nya rader.\n- Tryck på (alt+enter) för att göra en radbrytning i ett textfält. \n- Vissa frågor har rullistor. För att se rullistan klicka på svarsrutan och bläddra genom att klicka på pilen till höger i rutan.\n- Tänk på att inte lämna några säkerhetsskyddsklassificerade eller sekretessbelagda uppgifter i blanketten utan att göra en informationsklassning."]
[]
[]
[]
[]
[]
[]
[]
[]
[]
[]
[]
[null,"1. PROJEKTÖVERSIKT"]
[]
[null,"1.1 Kontaktuppgifter"]
[null,"Kontaktperson är den som kan svara på frågor om projektansökan. Behörig tjänsteperson är den som intygar uppgifterna i ansökan på sökande myndighets uppdrag och skriver under ansökan (se separat blankett)."]
[]
[]
[]
[null,null,null,"Sökande myndighet:"]
[null,null,null,"Postadress:"]
[]
[null,null,null,"Kontaktpersonens namn:"]
[null,null,null,"Telefonnummer till kontaktperson:"]
[null,null,null,"E-post till kontaktperson:"]
[null,null,null,"Namn på behörig tjänsteperson:"]
[null,null,null,"Titel på behörig tjänsteperson:"]
[null,null,null,"Telefonnummer till behörig:"]
[]
[null,"1.2. Projekttitel"]
[null,"Ge projektet ett kort namn som kan användas för att identifiera det enskilda projektet. Titeln ska inte omfatta några sekretessbelagda eller säkerhetskyddsklassificerade uppgifter."]
[]
[null,"Högst 120 tecken."]
[]
[]
[]
[null,"1.3 Tidplan"]
[null,{"$f":"\"Ansökan gäller kostnader som uppstår mellan den 1 januari \"&Koppling!A5&\" och 31 december \"&Koppling!A7&\". Besked om beviljade projekt ges tidigast i slutet av januari \"&Koppling!A5&\".\"","v":"Ansökan gäller kostnader som uppstår mellan den 1 januari 2023 och 31 december 2025. Besked om beviljade projekt ges tidigast i slutet av januari 2023."}]
[]
[]
[null,null,"Startdatum (åååå-mm-dd)"]
[null,null,"Slutdatum (åååå-mm-dd)"]
[null,null,"Antal kalenderår som projektet ska pågå"]
[]
[null,"1.4 Summa sökt ersättning  (visas automatiskt när ni fyllt i budgetfliken)"]
[]
[null,null,{"$f":"\"Sökt ersättning \"&Koppling!A5","v":"Sökt ersättning 2023"},null,null,null,{"$f":"'Del 5, Budget'!E47","v":0}]
[null,null,{"$f":"\"Sökt ersättning \"&Koppling!A6","v":"Sökt ersättning 2024"},null,null,null,{"$f":"'Del 5, Budget'!G47","v":0}]
[null,null,{"$f":"\"Sökt ersättning \"&Koppling!A7","v":"Sökt ersättning 2025"},null,null,null,{"$f":"'Del 5, Budget'!I47","v":0}]
[null,null,{"$f":"\"Summa ersättning hela perioden \"&Koppling!A5&\"-\"&Koppling!A7","v":"Summa ersättning hela perioden 2023-2025"},null,null,null,{"$f":"'Del 5, Budget'!K47","v":0}]
[]
[null,"1.5 Sammanfattning av projektet"]
[null,"Ge en översiktlig bild av syftet med projketet, vad som ska genomföras och vad verksamheten ska uppnå."]
[]
[]
[]
[]
[]
[]
[]
[]
[]
[]
[]
[]
[]
[]
[]
[]
[null,"1.6 Inom vilket område ska projektet bidra till stärkt förmåga?"]
[]
[null,"(Klicka här för att välja i rullistan)"]
[]
[null,"Ev. kommentar:"]
[]
[]
[]
[]
[]
[null,"1.7 Vilket behov ligger till grund för projektet?"]
[null,"Utgångspunkten för att söka anslagsmedel är Inriktning för projektmedel till myndigheter 2022-2023 – Anslag 2:4 Krisberedskap (MSB 2021-06286). Projektansökningar ska tydligt adressera ett åtgärdsområde som lyfts i nämnda inriktning eller NRFB. Alternativt i annan nationell analys. I maj 2022 gjordes ett tillägg till inriktningen och om projektet kopplar till något av de tillkomna åtgärdeområdena anger ni det nedan.\n\nProjektansökningar som avser en av kategorierna i kap. 2 i inriktningen kommer att prioriteras i anslagsfördelningen. Om er projektansökan inte kopplar till inriktningen, behöver ni själva beskriva behovet i frågorna 1.7.1 och 1.7.2 (väljer ni en del i inriktningen som behovsgrund så visas inte de frågorna)."]
[]
[]
[]
[]
[]
[]
[]
[]
[null,"Välj om projektet kopplar till något av inriktningens angivna områden:"]
[null,"(Klicka här för att välja i rullistan)",null,null,null,null,null,{"$f":"IF(B97=\"2.1.3 Hantering av resurser\",\"Söker ni projket som kopplar till frivilliga försvarsorganisationer eller näringliv, använd i första hand de förifyllda mallarna.\",\"\")","v":""}]
[]
[null,"Tillägg: \n- Åtgärder som i närtid stärker förmågan att verka inom ramarna för civilt försvar och öka förmågan att möta ett väpnat angrepp.\n- Åtgärder som stärker förmågan att upprätthålla funktionalitet inom samhällsviktig verksamhet under höjd beredskap och krig.\n- Åtgärder som omhändertar identifierade brister i MSB:s bedömning av förmågan inom civilt försvar."]
[]
[]
[]
[]
[]
[]
[]
[null,"Ligger projektet inom ramen för tillägget till inriktningen?"]
[null,"(Klicka här för att välja i rullistan)",null,null,null,null,null,{"$f":"IF(B108=\"2.1.3 Hantering av resurser\",\"Söker ni projket som kopplar till frivilliga försvarsorganisationer eller näringliv, använd i första hand de förifyllda mallarna.\",\"\")","v":""}]
[]
[]
[null,"1.7.1 Beskriv det behov som ligger till grund för projektet (fylls endast i om Projektet inte kopplar till inriktningen)"]
[null,"Enligt anslagets finansieringsprinciper ska projektet bygga på en behovsanalys. Förklara hur det aktuella projektet bidrar till att åtgärda det behov ni ser av den här insatsen."]
[]
[]
[]
[]
[]
[]
[null,"1.7.2 Var finns behovet dokumenterat?   (fylls endast i om Projektet inte kopplar till inriktningen)"]
[null,"Skriv så detaljerat som möjligt, exempelvis ange dokumentnamn, diarienummer, år och sidhänvisning."]
[]
[]
[]
[]
[]
[]
[null,"2. PROJEKTETS FÖRUTSÄTTNINGAR"]
[null,"I del 2 beskriver ni projketets förutsättningar och ingångsvärden som dess koppling till annan verksamhet. Ni styrker behovet av den planerade insatsen genom att koppla projektet till inriktningen för anslaget eller beskriva en annan behovsgrund."]
[]
[]
[]
[]
[null,"2.1 Motivera varför projektet ska finansieras med anslag 2:4 och inte i ordinarie verksamhet"]
[null,"Enligt ansvarsprincipen har en aktör med ansvar för en viss verksamhet under normala förhållanden även ansvaret i en kris. I linje med detta ska åtgärder för att upprätthålla en tillräcklig förmåga vid allvarliga händelser och kriser finansieras inom ramen för myndighetens ordinarie verksamhet. Myndigheten måste därför motivera varför det sökta projektet ska finansieras med 2:4-medel och inte med ordinarie medel. Se Finansieringsprinciper MSB 2019-09098."]
[]
[]
[]
[]
[null,"Skriv svaret här:"]
[]
[]
[]
[]
[]
[]
[]
[]
[]
[]
[]
[]
[]
[null,"2.2 Vilka aktörer är målgrupp/er för projektet? "]
[null,"Med målgrupp avses en aktör vars förmåga kommer att stärkas av projektets genomförande. "]
[]
[]
[]
[]
[null,null,null,null,"Ange annan:"]
[]
[null,"2.3 Hur förankras projektet hos målgruppen/erna?"]
[null,"Att tydligt knyta samman projektet med dess målgrupper kan bidra till att säkerställa effekterna av projektet."]
[null,"Om målgruppen deltar aktivt i projektet som samverkanspartner i projektet anger ni det även under del 3.4."]
[]
[]
[]
[]
[]
[]
[]
[null,"2.4 Känner ni till att ni/annan myndighet sökt 2:4-medel för en motsvarande åtgärd inom de senaste 5 åren ?"]
[null,"Om ja, koppla denna ansökan till den tidigare och förklara vad som är ändrat. "]
[null,"Hänvisa till år och projekttitel samt vilken myndighet som ansvarade för den tidigare ansökan."]
[]
[]
[]
[]
[null,"2.5 Vilka tidigare insatser har gjorts på området och hur tillvaratar ni tidigare erfarenheter och resultat?"]
[null,"Hänvisa till tidigare arbete/projekt, statistik, studier, undersökningar eller liknande som stödjer bakgrundsbeskrivningen."]
[]
[]
[]
[]
[]
[]
[]
[null,"2.6 Finns det pågående eller kommande projekt/regeringsuppdrag/utredningar som "]
[null,"projektet behöver ta hänsyn till? "]
[]
[]
[]
[]
[]
[]
[null,"2.7 Finns det avgörande framgångsfaktorer eller risker som behöver hanteras för att"]
[null,"projektet ska kunna genomföras?"]
[]
[]
[]
[]
[]
[]
[]
[]
[null,"3. PROJEKTETS RESULTAT"]
[null,"Del 3 använder begrepp och uttryck från verksamhetslogik. Verksamhetslogik är ett systematiskt sätt att beskriva verksamheters förutsättningar, genomförande och väntade effekter (ESV 2016:31). Resurser är det som behövs för att genomföra projektet, ni redovisar de resurser ni söker ersättning för på fliken Budget. Aktiviteter är den verksamhet som bedrivs inom ramen för det aktuella projektet, de kommer ni att beskriva i del 4 i ansökan. I den här delen redogör ni för projektets prestationer, det vill säga de leveranser som projektet ska prestera, och projektets väntade effekter på kort och längre sikt för att visa på hur projektet bidrar till att stärka samhällets beredskap som utgör slutmålet. Prestationerna och effekterna utgör projektets resultat. Se även fliken \"Exempel verksamhetslogik\" i denna fil.\n\n\n\n\n\nPå ESV:s webbsida finns en vägledning och en webbutbildning i verksamhetslogik (länk nedan) och ovan en översiktlig figur över hur de olika delarna hänger ihop. Använd gärna \"Sorteringstabellen\" i vägledningen (tabell 4.1) som stöd för att visualisera er verksamhetslogik.."]
[]
[]
[]
[]
[]
[]
[]
[]
[]
[]
[]
[]
[]
[]
[]
[]
[]
[null,"Länk till Verksamhetslogik - Ekonomistyrningsverket (esv.se) och vägledningen (2016:31)"]
[null,"Webbutbildningar - Ekonomistyrningsverket (esv.se)"]
[]
[null,"3.1 Beskriv nuläget"]
[null,"Sätt projektets behov i en kontext genom att beskriva hur situationen ser ut idag."]
[]
[]
[]
[]
[]
[]
[]
[]
[]
[]
[null,"3.2 Beskriv projektets prestationer: vad förväntas projektet leverera?"]
[null,"Prestationer är det som lämnar projketet; de uppkommer som en direkt följd eller i nära anslutning till att en aktivitet genomförs. En prestation kan vara en tjänst eller en vara, exempelvis en genomförd övning, mätning, utbildning eller framtagen rapport, vägledning, metod, modell, kartläggning osv.\n\nExempel: i ett projekt som ska ta fram en vägledning planeras för referensgruppsmöten, kunskapsinhämtning, att skriva vägledningen och framtagande av utbildning i vägledningen (aktiviteter). Vid projketslutet ska det att finnas en publicerad vägledning och man har hållit ett antal utbildningar i vägledningen (prestationer)."]
[]
[]
[]
[]
[]
[]
[null,"Skriv svaret här:"]
[]
[]
[]
[]
[]
[]
[]
[]
[]
[]
[null,"3.3 Vilka effekter på beredskap förväntas projektet leda till?"]
[null,"Enligt finansieringsprinciperna ska projekten ha påvisbara effekter på samhällets samlade krisberedskap eller den samlade förmågan att hantera kriser och dess konsekvenser. Detta är det slutmål som projektet siktar mot.  En effekt är den förändring som sker i samhället som en följd först av prestationer (effekt på kort sikt) och därefter som en följd på de tidigare effekterna (effekt på medellång och lång sikt).\n\nUtgå från det behov ni valt i fråga 1.7, det nuläge ni beskrivit i 3.1 och de prestationer ni angett i fråga 3.2 och koppla dem till ovan nämnda mål när ni besvarar den här frågan."]
[]
[]
[]
[]
[]
[]
[]
[null,"3.3.1 Effekter på kort sikt (som prestationerna leder till):"]
[null,"Effekter på kort sikt förväntas ske som en följd av prestationerna. \n\nExempel: den kortsiktiga effekten av ett projekt som tagit fram en vägledning (prestation) vara att målgrupperna för vägledningen och de som deltagit i referensgrupper har fått ökad kunskap på området. "]
[]
[]
[]
[]
[]
[]
[]
[]
[]
[]
[]
[]
[]
[null,"3.3.2 Effekter på medellång och lång sikt (som de kortsiktiga effekterna leder till):"]
[null,"Effekter på meddellång och lång sikt är det som förväntas ske som en följd av de kortsiktiga effekterna. \n\nExempel: ett projket tar fram en vägledning (prestation) som bidrar till att målgrupperna får ökad kunskap på området (effekt på kort sikt). Målgruppen upparbetar nya rutiner och övar dessa (effekt på meddellång sikt) vilket i sin tur innebär att det finns en långsiktig och systematisk hantering på plats (effekt på lång sikt). Det här väntas stärka samhällets beredskap (slutmål)."]
[]
[]
[]
[]
[]
[]
[]
[]
[]
[]
[]
[]
[]
[]
[]
[null,"3.4 Hur ska projektet följas upp?"]
[null,"Ge förslag på minst ett mått eller indikator som kan användas för att följa upp projektets prestationer som ni angett i fråga 3.3 och/eller effekter på samhällets samlade beredskap i fråga 3.4. Indikatorerna kommer vid beviljat projekt att följas upp i samband med er verksamhetsuppföljning och vid dialoger under projekttiden. Typ och antal indikatorer bestämmer ni själva utifrån projektets karaktär.\n\nExempel på indikatorer för prestationer: antal genomförda utbildningstillfällen, övade aktörer/deltagare, antal informationsträffar, genomförda tester osv, beroende på vad projektet ska leverera.\nExempel på indikatorer för effekter: ett projekt vars prestation är att ta fram en handbok eller vägledning skulle exempelvis kunna mäta hur många som 1) känner till vägledningen, 2) har läst vägledningen, och 3) har använt vägledningen vid en övning."]
[]
[]
[]
[]
[]
[]
[]
[]
[]
[]
[null,"Skriv svaret här:"]
[]
[]
[]
[]
[]
[]
[]
[]
[]
[]
[null,"3.5 Plan för implementering och spridning av resultatet:"]
[null,"När finansiering med anslag 2:4 upphör ska projektet övergå till myndighetens ordinarie verksamhet. Här beskriver ni både hur projektets prestationer ska tas tillvara inom den egna verksamheten och hur det ska spridas till andra aktörer."]
[]
[]
[]
[]
[]
[]
[]
[]
[]
[null,"3.6 Vilka framtida förvaltningskostnader väntas projektet generera? Om inga, ange det och förklara."]
[null,"Enligt finansieringsprinciperna ska sökande myndighet redogöra för den fortsatta finansieringen efter projektavslut. Var därför tydlig med vem/vilka som ansvarar för kostnaden samt hantering av eventuell risk om kostnaden inte kan tillgodoses efter projektavslut."]
[]
[]
[]
[]
[]
[]
[]
[]
[]
[]
[null,"4. PROJEKTETS GENOMFÖRANDE"]
[null,"I del 4 beskriver ni projektets aktiviteter och redogör för samverkande aktörer.\n\n\n\n\n"]
[]
[]
[]
[]
[]
[]
[null,"4.1 Omfattar projektet en egeninitierad övning eller övningsmoment? "]
[null,"En egeninitierad övning innebär att ni planerar en övning eller övningsmoment inom ramen för det aktuella projektet, "]
[null,"och då ska ni även fylla i bilagan om övning."]
[]
[null,"Notera att deltagande i samverkansövningar såsom SAMÖ 2023 och Barents Rescue ansöks om i särskilda blanketter"]
[null," och inte i denna 2:4-ansökan."]
[]
[null,"(Välj i rullistan)",null,null,null,null,null,null,null,{"$f":"IF(B360=\"Ja\",\"Ni måste fylla i fliken 'Bilaga för övning' för att ansökan ska vara fullständig.\",\"\")","v":""}]
[null,null,null,null,null,"Klicka här för att komma direkt till bilagan om övning."]
[]
[null,"4.2 Aktivitetsplan"]
[null,"Ange i stora drag de aktiviteter som krävs för att uppnå förväntade prestationer i projektet och när i tid som ni planerar att genomföra varje aktivitet.\n\nOBS! Om er beskrivning av en aktivitet blir längre än den mängd text som kan visas i rutan kan ni förstora raden genom att dra i skiljelinjen mellan radnumren till vänster eller infoga nya rader."]
[]
[]
[]
[]
[]
[null,"Tidpunkt (ungefärlig)",null,"Aktivitet"]
[]
[]
[]
[]
[]
[]
[]
[]
[]
[]
[]
[null,"4.3 Vilka aktörer samverkar ni med i projektet och hur?"]
[null,"Ange aktörerna med vilka ni samverkar inom projektet och en kontaktperson som MSB kan ta kontakt med. Bekräfta också att berörd aktör är vidtalad. Tänk på att resultatet oftast blir bättre om målgruppen är aktivt involverad i projektet. \n\nOBS! Om er beskrivning av en aktivitet blir längre än den mängd text som kan visas i rutan kan ni förstora raden genom att dra i skiljelinjen mellan radnumren till vänster eller infoga nya rader."]
[]
[]
[]
[]
[]
[]
[null,"Aktör",null,"Delaktighet, ange hur",null,null,null,"Kontaktperson + tel.",null,"Vidtalad?"]
[null,null,null,null,null,null,null,null,null,"(Välj i listan)"]
[null,null,null,null,null,null,null,null,null,"(Välj i listan)"]
[null,null,null,null,null,null,null,null,null,"(Välj i listan)"]
[null,null,null,null,null,null,null,null,null,"(Välj i listan)"]
[null,null,null,null,null,null,null,null,null,"(Välj i listan)"]
[null,null,null,null,null,null,null,null,null,"(Välj i listan)"]
[null,null,null,null,null,null,null,null,null,"(Välj i listan)"]
[null,null,null,null,null,null,null,null,null,"(Välj i listan)"]
[null,null,null,null,null,null,null,null,null,"(Välj i listan)"]
[null,null,null,null,null,null,null,null,null,"(Välj i listan)"]
[null,null,null,null,null,null,null,null,null,"(Välj i listan)"]
[]
[null,"4.3.1 Ska MSB delta aktivt i projektet?"]
[]
[null,"Klicka för att välja svar",null,null,null,null,"Om ja, ange kontaktperson:"]
[]
[]
[]
[null,"Innan ni skickar in er ansökan ska ni fylla i budgeten, se fliken \"Budget\" i detta dokument. "]
[null,"Klicka här för att komma direkt till budgeten."]
[]
[null,"Om er projektplan innehåller ett eller flera övningsmoment ska ni även fylla i fliken \"Bilaga för övning\"."]
[null,"Klicka här för att komma direkt till bilagan om övning."]

{"sheet":"Del 5, Budget","index":1,"n_rows":119,"n_cols":11,"rows_kept":119,"cut":false,"hidden":false,"merged":[[107,1,108,7],[107,8,108,10],[36,8,36,9],[46,10,46,11],[46,6,46,7],[46,8,46,9],[36,6,36,7],[39,6,39,7],[42,6,42,7],[39,8,39,9],[42,8,42,9],[42,10,42,11],[36,10,36,11],[36,4,36,5],[39,4,39,5],[42,4,42,5],[46,4,46,5],[39,10,39,11],[43,1,43,3],[37,1,37,3],[38,1,38,3],[44,1,44,3],[45,4,45,5],[45,8,45,9],[35,1,35,3],[35,4,35,5],[0,1,0,3],[29,6,29,7],[31,6,31,7],[32,6,32,7],[33,6,33,7],[29,4,29,5],[31,4,31,5],[32,4,32,5],[33,4,33,5],[34,1,34,3],[34,4,34,5],[34,6,34,7],[35,6,35,7],[34,8,34,9],[3,1,22,11],[29,10,29,11],[31,10,31,11],[32,10,32,11],[33,10,33,11],[33,8,33,9],[29,1,29,3],[31,1,31,3],[32,1,32,3],[30,4,30,5],[30,6,30,7],[30,8,30,9],[29,8,29,9],[31,8,31,9],[32,8,32,9],[30,10,30,11],[34,10,34,11],[35,8,35,9],[45,10,45,11],[30,1,30,3],[33,1,33,3],[36,1,36,3],[39,1,39,3],[42,1,42,3],[45,1,45,3],[44,4,44,5],[44,6,44,7],[44,8,44,9],[37,10,37,11],[38,10,38,11],[44,10,44,11],[37,4,37,5],[38,4,38,5],[37,6,37,7],[38,6,38,7],[37,8,37,9],[38,8,38,9],[35,10,35,11],[43,10,43,11],[40,1,40,3],[43,4,43,5],[117,2,117,6],[118,2,118,6],[112,2,112,6],[113,2,113,6],[114,2,114,6],[115,2,115,6],[116,2,116,6],[110,2,110,6],[111,2,111,6],[43,6,43,7],[45,6,45,7],[40,4,40,5],[40,6,40,7],[40,8,40,9],[40,10,40,11],[41,1,41,3],[41,4,41,5],[41,6,41,7],[41,8,41,9],[41,10,41,11],[43,8,43,9]]}
[null,"Klicka här för att komma tillbaka till projektplanen"]
[]
[null,"5. BUDGET"]
[null,"I del 5 redogör ni för projektets resurser genom att ange de kostnader ni vill söka anslagsmedel för. Läs igenom instruktionerna på sidan innan ni börjar fylla i. Vid frågor, kontakta anslag2-4@msb.se\n\n\n\n\n\n\nGör så här:\n1. Börja med att klicka i kryssrutan i den grå rutan nedan för att intyga att finansieringesprinciperna följs.\n2. Bläddra ner till tabellerna 5.2-7 för att fylla i era budgeterade kostnader. Fyll i grå rutor, alla lila rutor är förifyllda eller summeras automatiskt.\n3. Gå tillbaka till tabellen PROJEKTBUDGET högst upp på sidan och kontrollera att beloppen beräknats korrekt.\n4. Notera att ni kan klicka på knapparna ovanför projketbudgeten för att se kostnaderna uppdelat på den egna myndigheten respektive samverkanspartners (\"Visa delsummor\").\n\nExtrafunktion: Visa kostnader hos samverkanspartners\nI första kolumnen anger ni om kostnaden uppstår hos den egna myndigheten eller hos en samverkanspartner. Den egna myndigheten är förifylld, så ni behöver bara göra detta om kostnaden uppstår hos en partner. När samverkanspartner är vald som alternativ blir cellen orange för att det ska synas bättre. Om ni vill se kostnader uppdelat på den egna myndigheten och på samverkanspartners i Projektbudget, kan ni klicka på knappen \"Visa sökt belopp uppdelat mellan...\" ovanför tabellen. Klicka på knappen \"Dölj summeringen av sökt belopp mellan....\" för att dölja delsummorna igen. Den här funktionen har ingen betydelse för er ansökan, utan finns bara tillgänglig som ett stöd vid budgetering."]
[]
[]
[]
[]
[]
[]
[]
[]
[]
[]
[]
[]
[]
[]
[]
[]
[]
[]
[]
[]
[]
[]
[]
[]
[null,"PROJEKTBUDGET"]
[null,null,null,null,{"$f":"\"Total kostnad \"&Koppling!$A$5","v":"Total kostnad 2023"},null,{"$f":"\"Total kostnad \"&Koppling!$A$6","v":"Total kostnad 2024"},null,{"$f":"\"Total kostnad \"&Koppling!$A$7","v":"Total kostnad 2025"},null,"Hela projektperioden"]
[null,"Lönekostnad",null,null,{"$f":"SUM(E32:F33)","v":0},null,{"$f":"SUM(G32:H33)","v":0},null,{"$f":"SUM(I32:J33)","v":0},null,{"$f":"SUM(E31:J31)","v":0}]
[null,"Egna myndigheten",null,null,{"$f":"SUMIFS(T_lönekostnad[Summa],T_lönekostnad[Var uppstår kostnaden?],\"Egna myndigheten\",T_lönekostnad[ÅR],Koppling!A5)","v":0},null,{"$f":"SUMIFS(T_lönekostnad[Summa],T_lönekostnad[Var uppstår kostnaden?],\"Egna myndigheten\",T_lönekostnad[ÅR],Koppling!A6)","v":0},null,{"$f":"SUMIFS(T_lönekostnad[Summa],T_lönekostnad[Var uppstår kostnaden?],\"Egna myndigheten\",T_lönekostnad[ÅR],Koppling!A7)","v":0}]
[null,"Samverkanspartner",null,null,{"$f":"SUMIFS(T_lönekostnad[Summa],T_lönekostnad[Var uppstår kostnaden?],\"Samverkanspartner\",T_lönekostnad[ÅR],Koppling!A5)","v":0},null,{"$f":"SUMIFS(T_lönekostnad[Summa],T_lönekostnad[Var uppstår kostnaden?],\"Samverkanspartner\",T_lönekostnad[ÅR],Koppling!A6)","v":0},null,{"$f":"SUMIFS(T_lönekostnad[Summa],T_lönekostnad[Var uppstår kostnaden?],\"Samverkanspartner\",T_lönekostnad[ÅR],Koppling!A7)","v":0}]
[null,"Extern tjänst/sakkunskap",null,null,{"$f":"SUMIF(T_externtj[ÅR],Koppling!A5,T_externtj[Summa])","v":0},null,{"$f":"SUMIF(T_externtj[ÅR],Koppling!A6,T_externtj[Summa])","v":0},null,{"$f":"SUMIF(T_externtj[ÅR],Koppling!A7,T_externtj[Summa])","v":0},null,{"$f":"SUM(E34:J34)","v":0}]
[null,"Egna myndigheten",null,null,{"$f":"SUMIFS(T_externtj[Summa],T_externtj[Var uppstår kostnaden?],\"Egna myndigheten\",T_externtj[ÅR],Koppling!A5)","v":0},null,{"$f":"SUMIFS(T_externtj[Summa],T_externtj[Var uppstår kostnaden?],\"Egna myndigheten\",T_externtj[ÅR],Koppling!A6)","v":0},null,{"$f":"SUMIFS(T_externtj[Summa],T_externtj[Var uppstår kostnaden?],\"Egna myndigheten\",T_externtj[ÅR],Koppling!A7)","v":0}]
[null,"Samverkanspartner",null,null,{"$f":"SUMIFS(T_externtj[Summa],T_externtj[Var uppstår kostnaden?],\"Samverkanspartner\",T_externtj[ÅR],Koppling!A5)","v":0},null,{"$f":"SUMIFS(T_externtj[Summa],T_externtj[Var uppstår kostnaden?],\"Samverkanspartner\",T_externtj[ÅR],Koppling!A6)","v":0},null,{"$f":"SUMIFS(T_externtj[Summa],T_externtj[Var uppstår kostnaden?],\"Samverkanspartner\",T_externtj[ÅR],Koppling!A7)","v":0}]
[null,"Resa och logi",null,null,{"$f":"SUMIF(T_resalogi[ÅR],Koppling!A5,T_resalogi[Summa])","v":0},null,{"$f":"SUMIF(T_resalogi[ÅR],Koppling!A6,T_resalogi[Summa])","v":0},null,{"$f":"SUMIF(T_resalogi[ÅR],Koppling!A7,T_resalogi[Summa])","v":0},null,{"$f":"SUM(E37:J37)","v":0}]
[null,"Egna myndigheten",null,null,{"$f":"SUMIFS(T_resalogi[Summa],T_resalogi[Var uppstår kostnaden?],\"Egna myndigheten\",T_resalogi[ÅR],Koppling!A5)","v":0},null,{"$f":"SUMIFS(T_resalogi[Summa],T_resalogi[Var uppstår kostnaden?],\"Egna myndigheten\",T_resalogi[ÅR],Koppling!A6)","v":0},null,{"$f":"SUMIFS(T_resalogi[Summa],T_resalogi[Var uppstår kostnaden?],\"Egna myndigheten\",T_resalogi[ÅR],Koppling!A7)","v":0}]
[null,"Samverkanspartner",null,null,{"$f":"SUMIFS(T_resalogi[Summa],T_resalogi[Var uppstår kostnaden?],\"Samverkanspartner\",T_resalogi[ÅR],Koppling!A5)","v":0},null,{"$f":"SUMIFS(T_resalogi[Summa],T_resalogi[Var uppstår kostnaden?],\"Samverkanspartner\",T_resalogi[ÅR],Koppling!A6)","v":0},null,{"$f":"SUMIFS(T_resalogi[Summa],T_resalogi[Var uppstår kostnaden?],\"Samverkanspartner\",T_resalogi[ÅR],Koppling!A7)","v":0}]
[null,"Anläggningstillgång",null,null,{"$f":"SUMIF(T_inventarie[ÅR],Koppling!A5,T_inventarie[Summa])","v":0},null,{"$f":"SUMIF(T_inventarie[ÅR],Koppling!A6,T_inventarie[Summa])","v":0},null,{"$f":"SUMIF(T_inventarie[ÅR],Koppling!A7,T_inventarie[Summa])","v":0},null,{"$f":"SUM(E40:J40)","v":0}]
[null,"Egna myndigheten",null,null,{"$f":"SUMIFS(T_inventarie[Summa],T_inventarie[Var uppstår kostnaden?],\"Egna myndigheten\",T_inventarie[ÅR],Koppling!A5)","v":0},null,{"$f":"SUMIFS(T_inventarie[Summa],T_inventarie[Var uppstår kostnaden?],\"Egna myndigheten\",T_inventarie[ÅR],Koppling!A6)","v":0},null,{"$f":"SUMIFS(T_inventarie[Summa],T_inventarie[Var uppstår kostnaden?],\"Egna myndigheten\",T_inventarie[ÅR],Koppling!A7)","v":0}]
[null,"Samverkanspartner",null,null,{"$f":"SUMIFS(T_inventarie[Summa],T_inventarie[Var uppstår kostnaden?],\"Samverkanspartner\",T_inventarie[ÅR],Koppling!A5)","v":0},null,{"$f":"SUMIFS(T_inventarie[Summa],T_inventarie[Var uppstår kostnaden?],\"Samverkanspartner\",T_inventarie[ÅR],Koppling!A6)","v":0},null,{"$f":"SUMIFS(T_inventarie[Summa],T_inventarie[Var uppstår kostnaden?],\"Samverkanspartner\",T_inventarie[ÅR],Koppling!A7)","v":0}]
[null,"Övrig kostnad",null,null,{"$f":"SUMIF(T_ovrigt[ÅR],Koppling!A5,T_ovrigt[Summa])","v":0},null,{"$f":"SUMIF(T_ovrigt[ÅR],Koppling!A6,T_ovrigt[Summa])","v":0},null,{"$f":"SUMIF(T_ovrigt[ÅR],Koppling!A7,T_ovrigt[Summa])","v":0},null,{"$f":"SUM(E43:J43)","v":0}]
[null,"Egna myndigheten",null,null,{"$f":"SUMIFS(T_ovrigt[Summa],T_ovrigt[Var uppstår kostnaden?],\"Egna myndigheten\",T_ovrigt[ÅR],Koppling!A5)","v":0},null,{"$f":"SUMIFS(T_ovrigt[Summa],T_ovrigt[Var uppstår kostnaden?],\"Egna myndigheten\",T_ovrigt[ÅR],Koppling!A6)","v":0},null,{"$f":"SUMIFS(T_ovrigt[Summa],T_ovrigt[Var uppstår kostnaden?],\"Egna myndigheten\",T_ovrigt[ÅR],Koppling!A7)","v":0}]
[null,"Samverkanspartner",null,null,{"$f":"SUMIFS(T_ovrigt[Summa],T_ovrigt[Var uppstår kostnaden?],\"Samverkanspartner\",T_ovrigt[ÅR],Koppling!A5)","v":0},null,{"$f":"SUMIFS(T_ovrigt[Summa],T_ovrigt[Var uppstår kostnaden?],\"Samverkanspartner\",T_ovrigt[ÅR],Koppling!A6)","v":0},null,{"$f":"SUMIFS(T_ovrigt[Summa],T_ovrigt[Var uppstår kostnaden?],\"Samverkanspartner\",T_ovrigt[ÅR],Koppling!A7)","v":0}]
[null,"Kostnad för övning",null,null,{"$f":"SUMIF('Del 5, Budget'!$H$112:$H$118,Koppling!A5,'Del 5, Budget'!$K$112:$K$118)","v":0},null,{"$f":"SUMIF('Del 5, Budget'!$H$112:$H$118,Koppling!A6,'Del 5, Budget'!$K$112:$K$118)","v":0},null,{"$f":"SUMIF('Del 5, Budget'!$H$112:$H$118,Koppling!A7,'Del 5, Budget'!$K$112:$K$118)","v":0},null,{"$f":"SUM(E46:J46)","v":0}]
[null,"Total sökt kostnad per år",null,null,{"$f":"E31+E34+E37+E40+E43+E46","v":0},null,{"$f":"G31+G34+G37+G40+G43+G46","v":0},null,{"$f":"I31+I34+I37+I40+I43+I46","v":0},null,{"$f":"K31+K34+K37+K40+K43+K46","v":0}]
[]
[null,"5.1 Intyga att finansieringsprinciperna följs"]
[]
[]
[]
[]
[null,"5.2. Lönekostnad (du kan byta från lön för egen personal till lön för personal hos samverkanspartner genom att välja alternativ i första kolumnen)"]
[null,"Var uppstår kostnaden?","Befattning","ÅR","Månadslön","Lönebikostnad (%)","Omfattning (%)","à pris (per mån)","Antal mån (under valt år)","Summa"]
[null,"Egna myndigheten",null,"Ange år",0,null,null,{"$f":"E56*(1+F56)*G56","v":0},null,{"$f":"ROUND(H56*I56,0)","v":0}]
[null,"Egna myndigheten",null,"Ange år",0,null,null,{"$f":"E57*(1+F57)*G57","v":0},null,0]
[null,"Egna myndigheten",null,"Ange år",0,null,null,0,null,0]
[null,"Egna myndigheten",null,"Ange år",0,null,null,0,null,0]
[null,"Egna myndigheten",null,"Ange år",0,null,null,0,null,0]
[null,"Egna myndigheten",null,"Ange år",0,null,null,0,null,0]
[null,"Egna myndigheten",null,"Ange år",0,null,null,0,null,0]
[null,"Egna myndigheten",null,"Ange år",0,null,null,0,null,0]
[null,"Egna myndigheten",null,"Ange år",0,null,null,0,null,0]
[null,"Egna myndigheten",null,"Ange år",0,null,null,0,null,0]
[null,"Summa",null,null,null,null,null,null,null,{"$f":"SUBTOTAL(109,T_lönekostnad[Summa])","v":0}]
[]
[null,"5.3 Extern tjänst"]
[null,"Var uppstår kostnaden?","Typ av kostnad och beskrivning av tjänst","ÅR","Kr/antal","Antal","Summa"]
[null,"Egna myndigheten",null,"Ange år",0,null,{"$f":"ROUND(E70*F70,0)","v":0}]
[null,"Egna myndigheten",null,"Ange år",0,null,0]
[null,"Egna myndigheten",null,"Ange år",0,null,0]
[null,"Egna myndigheten",null,"Ange år",0,null,0]
[null,"Egna myndigheten",null,"Ange år",0,null,0]
[null,"Egna myndigheten",null,"Ange år",0,null,0]
[null,"Summa",null,null,null,null,{"$f":"SUBTOTAL(109,T_externtj[Summa])","v":0}]
[]
[null,"5.4 Resa och logi (ange en resa per rad)"]
[null,"Var uppstår kostnaden?","Ange resmål, syfte, resenär","ÅR","Kr/person","Antal personer","Summa"]
[null,"Egna myndigheten",null,"Ange år",0,null,{"$f":"ROUND(E80*F80,0)","v":0}]
[null,"Egna myndigheten",null,"Ange år",0,null,0]
[null,"Egna myndigheten",null,"Ange år",0,null,0]
[null,"Egna myndigheten",null,"Ange år",0,null,0]
[null,"Egna myndigheten",null,"Ange år",0,null,0]
[null,"Egna myndigheten",null,"Ange år",0,null,0]
[null,"Summa",null,null,null,null,{"$f":"SUBTOTAL(109,T_resalogi[Summa])","v":0}]
[]
[null,"5.5 Anläggningstillgång (en anläggnignstillgång är en tillgång som är avsedd för innehav eller stadigvarande bruk)"]
[null,"Var uppstår kostnaden?","Beskriv anskaffning och användning","ÅR","Anskaffnings-värde","Nyttjandegrad (%)","Summa"]
[null,"Egna myndigheten",null,"Ange år",0,null,{"$f":"ROUND(E90*F90,0)","v":0}]
[null,"Egna myndigheten",null,"Ange år",0,null,{"$f":"ROUND(E91*F91,0)","v":0}]
[null,"Egna myndigheten",null,"Ange år",0,null,{"$f":"ROUND(E92*F92,0)","v":0}]
[null,"Egna myndigheten",null,"Ange år",0,null,{"$f":"ROUND(E93*F93,0)","v":0}]
[null,"Summa",null,null,null,null,{"$f":"SUBTOTAL(109,T_inventarie[Summa])","v":0}]
[]
[null,"5.6 Övrig kostnad (hyra extern lokal, förbrukningsmateriel och andra kostnader som inte passar under övriga kategorier)"]
[null,"Var uppstår kostnaden?","Typ av kostnad och beskrivning av syftet","ÅR","Kr/antal","Antal","Summa"]
[null,"Egna myndigheten",null,"Ange år",0,null,{"$f":"ROUND(E98*F98,0)","v":0}]
[null,"Egna myndigheten",null,"Ange år",0,null,0]
[null,"Egna myndigheten",null,"Ange år",0,null,{"$f":"ROUND(E100*F100,0)","v":0}]
[null,"Egna myndigheten",null,"Ange år",0,null,0]
[null,"Egna myndigheten",null,"Ange år",0,null,0]
[null,"Egna myndigheten",null,"Ange år",0,null,0]
[null,"Summa",null,null,null,null,{"$f":"SUBTOTAL(109,T_ovrigt[Summa])","v":0}]
[]
[null,"5.7 Kostnad för övning enligt bilaga (fyll i fliken Bilaga för övning om projketet innehåller övningsmoment)"]
[]
[null,"Information om att söka ersättning för egeninitierade övningar inom projektet finns på MSB:s webbsida.",null,null,null,null,null,null,"Klicka här för att komma till webbsidan."]
[]
[]
[null,"Kostnadstyp","Beskriv kostnaden",null,null,null,null,"ÅR","Kr/antal","Antal","Summa"]
[null,"(Välj)",null,null,null,null,null,"Ange år",0,null,{"$f":"ROUND(I112*J112,0)","v":0}]
[null,"(Välj)",null,null,null,null,null,"Ange år",0,null,{"$f":"ROUND(I113*J113,0)","v":0}]
[null,"(Välj)",null,null,null,null,null,"Ange år",0,null,0]
[null,"(Välj)",null,null,null,null,null,"Ange år",0,null,0]
[null,"(Välj)",null,null,null,null,null,"Ange år",0,null,0]
[null,"(Välj)",null,null,null,null,null,"Ange år",0,null,0]
[null,"(Välj)",null,null,null,null,null,"Ange år",0,null,{"$f":"ROUND(I118*J118,0)","v":0}]
[null,"Summa",null,null,null,null,null,null,null,null,{"$f":"SUM(K112:K118)","v":0}]

{"sheet":"Del 6, Bilaga Övning","index":2,"n_rows":89,"n_cols":10,"rows_kept":89,"cut":false,"hidden":false,"merged":[[63,1,63,4],[63,5,63,8],[65,1,65,4],[64,1,64,4],[64,5,64,8],[65,5,65,8],[0,1,0,5],[68,1,68,4],[77,1,79,9],[66,1,66,4],[67,1,67,4],[66,5,66,8],[67,5,67,8],[68,5,68,8],[3,1,14,9],[32,1,36,9],[61,1,61,4],[39,1,43,9],[61,5,61,9],[56,5,56,9],[46,1,48,9],[17,1,18,9],[89,1,91,9],[70,1,70,4],[71,1,71,4],[74,1,75,9],[69,1,69,4],[69,5,69,8],[70,5,70,8],[71,5,71,8]]}
[null,"Klicka här för att komma tillbaka till projektplanen"]
[]
[null,"6. Bilaga till projektplan: Övning"]
[null,"Den här delen fyller ni i om ert sökta utvecklingsprojekt innehåller en eller flera övningar. Följande förutsättningar gäller för att kunna beviljas medel:\n• Att det är en samverkansövning med flera aktörer.\n• Att samtliga samverkande aktörer är vidtalade och har bekräftat sitt deltagande. \n• Övningen ska omfatta minst ett område/en aspekt inom gällande övningsinriktning.\n• Att det finns ett tydligt syfte med övningen.\n• Att det finns en plan eller inriktning för utvärdering och erfarenhetshantering (dvs hur resultaten ska tas om hand efter övningen).\n\nOm ni har behov av flera övningsbilagor för att dokumentera flera övningar kan ni högerklicka på fliken \"Bilaga för övning\" och sen välja \"Flytta eller kopiera...\" och kryssa i rutan \"Skapa en kopia\" innan ni klickar på OK. Då kopieras det valda bladet."]
[]
[]
[]
[]
[]
[]
[]
[]
[]
[]
[]
[]
[null,"Projekttitel"]
[null,{"$f":"IF('Del 1-4, Projektplan'!B40=\"\",\"Här visas namnet ni angett på fliken Del 1-4, Projektplan.\",'Del 1-4, Projektplan'!B40)","v":"Här visas namnet ni angett på fliken Del 1-4, Projektplan."}]
[]
[]
[null,"5.5 Intyganden"]
[]
[]
[]
[]
[]
[]
[]
[]
[]
[null,"6.1 Ge en kort beskrivning av den planerade övningen och koppla till övningsinriktningen"]
[null,"Vad är det som ska övas och hur? Hur kopplar övningen till övningsinriktningen?"]
[]
[]
[]
[]
[]
[]
[null,"6.2 Motivera kort övningens betydelse för projketet"]
[]
[]
[]
[]
[]
[]
[null,"6.3 När ska övningen genomföras? (koppla detta tydligt till er aktivitetsplan i del 4.1)"]
[]
[]
[]
[]
[null,"6.4 Vilket eller vilka övningsformat ska användas? (möjligt att välja flera svarsalternaitv)"]
[]
[]
[]
[]
[]
[]
[]
[null,"6.5 Deltagande aktörer"]
[null,"Ange vilka aktörer som ska vara med och öva och om de är vidtalade."]
[]
[null,"Aktör som ansvarar för övningen"]
[]
[null,"Aktör som deltar i övningen",null,null,null,"Hur/i vilken omfattning ska aktören delta?",null,null,null,"Vidtalad?"]
[null,null,null,null,null,null,null,null,null,"(Välj i listan)"]
[null,null,null,null,null,null,null,null,null,"(Välj i listan)"]
[null,null,null,null,null,null,null,null,null,"(Välj i listan)"]
[null,null,null,null,null,null,null,null,null,"(Välj i listan)"]
[null,null,null,null,null,null,null,null,null,"(Välj i listan)"]
[null,null,null,null,null,null,null,null,null,"(Välj i listan)"]
[null,null,null,null,null,null,null,null,null,"(Välj i listan)"]
[null,null,null,null,null,null,null,null,null,"(Välj i listan)"]
[]
[null,"6.6 Bemanning"]
[null,"Projektledare och utvärderingsledare bör vara bemannad av sökande aktör(er), inte konsulter, i syfte att främja utvecklingen av myndighetens förmågor."]
[]
[null,"Beskriv översiktligt bemanning av de viktigaste projektrollerna. Dessa ska tydligt framgå i budgeten om de finansieras med sökta medel."]
[]
[]
[]
[]
[null,"6.7 Erfarenhetshantering"]
[]
[]
[]
[]
[]
[]
[null,"Hur ska ni ta hand om de erfarenheter, kunskapar, lärdomar som övningen ger? Exempel: ta fram en åtgärdsplan."]

{"sheet":"Exempel verksamhetslogik","index":3,"n_rows":10,"n_cols":8,"rows_kept":10,"cut":false,"hidden":false,"merged":[]}
[]
[]
[]
[null,null,null,null,null,"Effekt på längre sikt"]
[null,"Resurser","Aktiviteter","Prestationer","Effekt, kort sikt","Effekt, medellång sikt","Effekt, lång sikt","Slutmål"]
[null,"(vad behövs för att genomföra projektet)","(vilken verksamhet/vilka uppgifter utförs i projektet)","(vad leder aktiviteterna till dvs vad ska projektet leverera)","(vad väntas prestationerna leda till)","(vad väntas de kortsiktiga effekterna leda till)","(vad väntas effekterna på medellång sikt leda till)","(övergripande, önskat framtida tillstånd)"]
[null,"Projektledare","Möten (referensgrupp)"," En publicerad vägledning","Ökad kunskap hos gruppen som arbetar med vägledningen, erfarenhetsutbyte","Målgrupperna tar fram nya rutiner och beredskapsplaner utifrån vägledningen","Långsiktig och systematiskt hantering av det vägledningen omfattar finns på plats","Samhällets beredskap har stärkts"]
[null,"Projektgrupp","Kunskapsinhämtning","Spridningsaktiviteter (information/utbildning i vägledningen)","Ökad kunskap hos målgrupperna som får stöd i att använda vägledningen","Övningar i de nya rutinerna genomförs"]
[null,"Referensgrupp","Skriva vägledning"]
[null,null,"Utforma information/utbildningar om vägledningen."]

{"sheet":"Om blanketten","index":4,"n_rows":8,"n_cols":9,"rows_kept":8,"cut":false,"hidden":false,"merged":[[2,7,3,7],[2,8,3,8],[6,7,9,7],[6,8,9,8]]}
[null,"Blankettens struktur",null,null,null,null,"Tekniska tips"]
[]
[null,"Del 1 - Projektöversikt","Sammanfattning och beskrivning av nuläget samt önskat läge när projektet är slutfört. Grundläggande info som kontaktuppgifter, tidplan, koppling till behovsgrund.",null,null,null,null,"Gör textrutorna större så att all text blir synlig genom att antingen:\n\na) dra i skiljelinjen mellan två rader för att göra raden tjockare\n\neller\n\nb) högerklicka på en rad i mitten av en textruta för att infoga en likadan rad ovanför den markerade","a)                            b)"]
[null,"Del 2 - Projektets förutsättningar","Motivering varför projektet inte är eget ansvar, vilka aktörer som är målgrupp och hur de ska ta del av projetket och dess resultat. Här redogörs också för koppling till annan verksamhet, omhändertagande av tidigare erfarenheter samt risker och framgångsfaktorer."]
[null,"Del 3 - Projektets resultat","Resultaten utgörs av prestationer och effekter. Här redogörs också för uppföljning med hjälp av indikatorer och framtida implementering samt finansiering.",null,null,null,null,"Förstora sidan genom att zooma in\nAnvänd plus- och minustecknet i nedre högra hörnet i Excel för att zooma in och zooma ut."]
[null,"Del 4 - Projektets genomförande","Här listas den verksamhet som ska genomföras inom ramen för projektet och vilka aktörer som ingår i samverkan.",null,null,null,null,"Gör radbrytning i en textruta\nTryck på alt+enter för att göra en radbrytning"]
[null,"Del 5 - Budget (separat flik)","Redovisning av sökt ersättning.",null,null,null,null,"Infoga fler rader\nLås upp bladet (inget lösenord krävs). Högerklicka sen på ett av radnumren i den del du vill utöka (i vänstermarginalen på blader) och välj \"infoga\". Välj om du vill låsa bladet igen, men lämna då rutan för lösenord blank. Låset finns bara som ett stöd för att undvika att någon formel oavsiktligt ändras.\n\nDet går att skapa fler rader för exempelvis aktiviteter, samverkanspartners eller i någon av budgettabellerna på detta sätt.\n\nViktigt att infoga en hel rad och inte bara en eller några celler, för att inte påverka resten av blanketten."]
[null,"Del 6 - Bilaga Övning (separat flik)","Redovisning av övningsaktiviteter som ingår i projektet. Fylls bara i om projektet innehåller övningar/övningsaktiviteter."]

{"sheet":"MSB","index":5,"n_rows":2,"n_cols":45,"rows_kept":2,"cut":false,"hidden":true,"merged":[]}
["Myndighet","Kontaktperson mejl","Projekttitel","Sammanfattning av projektet","Motivering anslag 2:4","Effekt på lång sikt","Antal kalenderår",{"$f":"'Del 1-4, Projektplan'!C53","v":"Sökt ersättning 2023"},{"$f":"'Del 1-4, Projektplan'!C54","v":"Sökt ersättning 2024"},{"$f":"'Del 1-4, Projektplan'!C55","v":"Sökt ersättning 2025"},"Prioriterat område","Investeringsprojekt?","Koppling till inriktningen","Tillägg till inriktningen?","Indiaktorer","Övning?","Deltar MSB?","Om ja, vem?"]
[{"$f":"'Del 1-4, Projektplan'!E26","v":0},{"$f":"'Del 1-4, Projektplan'!E31","v":0},{"$f":"'Del 1-4, Projektplan'!B40","v":0},{"$f":"'Del 1-4, Projektplan'!B60","v":0},{"$f":"'Del 1-4, Projektplan'!B140","v":0},{"$f":"'Del 1-4, Projektplan'!B289","v":0},{"$f":"'Del 1-4, Projektplan'!G49","v":0},{"$f":"'Del 1-4, Projektplan'!G53","v":0},{"$f":"'Del 1-4, Projektplan'!G54","v":0},{"$f":"'Del 1-4, Projektplan'!G55","v":0},{"$f":"'Del 1-4, Projektplan'!B78","v":"(Klicka här för att välja i rullistan)"},false,{"$f":"'Del 1-4, Projektplan'!B97","v":"(Klicka här för att välja i rullistan)"},{"$f":"'Del 1-4, Projektplan'!$B$108","v":"(Klicka här för att välja i rullistan)"},{"$f":"'Del 1-4, Projektplan'!B312","v":0},{"$f":"'Del 1-4, Projektplan'!B360","v":"(Välj i rullistan)"},{"$f":"'Del 1-4, Projektplan'!B405","v":"Klicka för att välja svar"},{"$f":"'Del 1-4, Projektplan'!H405","v":0},null,null,null,null,null,null,null,null,null,null,null,null,null,null,null,null,null,null,null,null,null,null,null,null,null,null,false]

{"sheet":"Koppling","index":6,"n_rows":48,"n_cols":12,"rows_kept":48,"cut":false,"hidden":true,"merged":[]}
["År för projektstart (uppdatera här så uppdateras alla årtalen i blanketten):",2023]
[]
[]
["Ange år"]
[{"$f":"B1","v":2023}]
[{"$f":"B1+1","v":2024}]
[{"$f":"B1+2","v":2025}]
[]
["(Klicka här för att välja i rullistan)",null,"(Klicka här för att välja i rullistan)",null,null,"(Klicka här för att välja i rullistan)",null,null,null,null,1,{"$f":"\"\"","v":""}]
["Elektroniska kommunikationer och post",null,"Samverkan och ledning",null,null,"Förmåga till aktörsgemensam hantering i gråzon och höjd beredskap",null,null,null,null,{"$f":"IF('Del 1-4, Projektplan'!B97=Koppling!C10,2,0)","v":0},"Välj övergripande utvecklingsområde i listan. Om projektet ligger inom ramen för flera områden väljer ni det som passar bäst:"]
["Energiförsörjning",null,"Kommunikation till allmänheten",null,null,"Förmåga att hantera säkerhetsskyddsklassificerade uppgifter",null,null,null,null,{"$f":"IF('Del 1-4, Projektplan'!B97=Koppling!C12,2,0)","v":0},"Hänvisa till numret på den prioriterade åtgärd som det här projektet hör till (exempelvis 1.1 osv). Om projektet passar in under flera åtgärder kan ni hänvisa till samtliga åtgärder."]
["Finansiell beredskap",null,"Hantering av resurser",null,null,"Samhällets informations- och cybersäkerhet",null,null,null,null,{"$f":"IF('Del 1-4, Projektplan'!B97=Koppling!#REF!,2,0)","v":{"$error":"#REF!"}},"Hänvisa i textrutan nedan till det aktuella tillägget"]
["Hälso- och sjukvård och omsorg",null,"Farliga ämnen (CBRNE)",null,null,"Förmåga till säker  och robust kommunikation",null,null,null,null,{"$f":"IF('Del 1-4, Projektplan'!B97=Koppling!#REF!,0,0)","v":{"$error":"#REF!"}},"Fortsätt till del 2.3 i ansökan för att beskriva det behov ni ser av projektet och var det finns dokumenterat."]
["Livsmedel och dricksvatten",null,"Projektet kopplar inte till inriktningen",null,null,"Allmänhetens beredskap inför olyckor, kriser och krig",null,null,null,null,0,"Fortsätt till del 2.3 i ansökan för att beskriva det behov ni ser av projektet och var det finns dokumenterat."]
["Ordning och säkerhet",null,null,null,null,"Förändrad hotbild inom CBRNE",null,null,null,null,{"$f":"SUM(K9:K14)","v":{"$error":"#REF!"}}]
["Skydd av civilbefolkningen",null,null,null,null,null,null,null,null,null,null,{"$f":"IF(B138=\"Prioriterat utvecklingsområde\",\"Välj prioriterat utvecklingsområde i listan. Om projektet ligger inom ramen för flera områden väljer ni det som passar bäst:\",\"Hänvisa till numret på den åtgärd som det här projektet hör till (exempelvis 1.1 osv). Om projektet passar in under flera åtgärder kan ni hänvisa till samtliga åtgärder.\")","v":"Hänvisa till numret på den åtgärd som det här projektet hör till (exempelvis 1.1 osv). Om projektet passar in under flera åtgärder kan ni hänvisa till samtliga åtgärder."}]
["Transporter",null,"Kryssrutor - ingångsvärden"]
["Annat (lämna kommentar)",null,false]
[null,null,false]
[null,null,false]
["Kryssrutor:",null,false]
[false,"Kommuner"]
[false,"Regioner"]
[false,"Länsstyrelser"]
[false,"Näringsliv"]
[false,"Centrala myndigheter"]
[false,"Frivilligorganisationer"]
[false,"Allmänheten"]
[false,"Annat"]
[]
[false,"4.1 Finansieringsprinciper"]
[]
[]
[]
["Kryssrutor övning"]
[false,"Erfarenhet 1"]
[false,"Erfarenhet 2"]
[false,"Erfarenhet 3"]
[false,"Övning med fältenhet"]
[false,"Simulernig"]
[false,"Seminarie"]
[false,"Funktion"]
[false,"Ej beslutat"]
[false,"Annat"]
[false,"Intyg 1"]
[false,"Intyg 2"]
[false,"Intyg 3"]
[false,"Intyg 4"]